[Event "NJSK 2021 Jeugd C"]
[Site "Almelo, Netherlands"]
[Date "2021.08.06"]
[Round "8.9"]
[White "Krylov, Philippe"]
[Black "Kien, Lancelot"]
[Result "1/2-1/2"]
[TimeControl "90min + 30sec/move"]
[WhiteElo "1339"]
[BlackElo "1650"]

1. d4 {[%clk 01:30:58]} {[%emt 00:00:02]} d5 {[%clk 01:30:57]} {[%emt
00:00:04]} 2. c4 {[%clk 01:31:23]} {[%emt 00:00:05]} dxc4 {[%clk 01:31:23]}
{[%emt 00:00:03]} 3. e3 {[%clk 01:31:40]} {[%emt 00:00:13]} e6 {[%clk
01:31:38]} {[%emt 00:00:17]} 4. Bxc4 {[%clk 01:32:01]} {[%emt 00:00:06]} Nf6
{[%clk 01:32:01]} {[%emt 00:00:09]} 5. Nf3 {[%clk 01:31:56]} {[%emt 00:00:34]}
c5 {[%clk 01:32:22]} {[%emt 00:00:10]} 6. O-O {[%clk 01:32:08]} {[%emt
00:00:17]} a6 {[%clk 01:32:38]} {[%emt 00:00:16]} 7. dxc5 {[%clk 01:32:06]}
{[%emt 00:00:31]} Qxd1 {[%clk 01:31:59]} {[%emt 00:01:09]} 8. Rxd1 {[%clk
01:32:23]} {[%emt 00:00:12]} Bxc5 {[%clk 01:32:11]} {[%emt 00:00:19]} 9. Nbd2
{[%clk 01:31:41]} {[%emt 00:01:12]} b5 {[%clk 01:31:30]} {[%emt 00:01:11]} 10.
Be2 {[%clk 01:31:43]} {[%emt 00:00:27]} Bb7 {[%clk 01:29:16]} {[%emt 00:02:45]}
11. b3 {[%clk 01:30:31]} {[%emt 00:01:42]} O-O {[%clk 01:27:57]} {[%emt
00:01:49]} 12. Bb2 {[%clk 01:29:07]} {[%emt 00:01:54]} Nbd7 {[%clk 01:24:43]}
{[%emt 00:03:44]} 13. Rac1 {[%clk 01:27:45]} {[%emt 00:01:51]} Bb6 {[%clk
01:23:50]} {[%emt 00:01:24]} 14. Nd4 {[%clk 01:25:13]} {[%emt 00:03:02]} Rac8
{[%clk 01:22:34]} {[%emt 00:01:46]} 15. Bf3 {[%clk 01:24:45]} {[%emt 00:00:57]}
Nd5 {[%clk 01:19:32]} {[%emt 00:03:32]} 16. g3 {[%clk 01:22:39]} {[%emt
00:02:36]} Ne5 {[%clk 01:16:08]} {[%emt 00:03:55]} 17. Bxd5 {[%clk 01:11:37]}
{[%emt 00:11:32]} Rxc1 {[%clk 01:09:24]} {[%emt 00:07:14]} 18. Rxc1 {[%clk
01:10:45]} {[%emt 00:01:22]} exd5 {[%clk 01:09:07]} {[%emt 00:00:48]} 19. Ne6
{[%clk 01:04:53]} {[%emt 00:06:21]} fxe6 {[%clk 01:06:14]} {[%emt 00:03:23]} 20.
Bxe5 {[%clk 01:05:08]} {[%emt 00:00:15]} Ba5 {[%clk 01:04:56]} {[%emt
00:01:48]} 21. Nb1 {[%clk 01:01:53]} {[%emt 00:03:45]} g5 {[%clk 00:57:53]}
{[%emt 00:07:33]} 22. a3 {[%clk 01:01:16]} {[%emt 00:01:07]} g4 {[%clk
00:57:24]} {[%emt 00:00:59]} 23. b4 {[%clk 01:00:24]} {[%emt 00:01:22]} Bb6
{[%clk 00:57:36]} {[%emt 00:00:17]} 24. Nd2 {[%clk 00:59:47]} {[%emt 00:01:07]}
Kf7 {[%clk 00:52:01]} {[%emt 00:06:06]} 25. Nb3 {[%clk 00:57:44]} {[%emt
00:02:33]} Rc8 {[%clk 00:42:38]} {[%emt 00:09:52]} 26. Rxc8 {[%clk 00:56:59]}
{[%emt 00:01:15]} Bxc8 {[%clk 00:43:01]} {[%emt 00:00:08]} 27. Nd4 {[%clk
00:57:19]} {[%emt 00:00:10]} Bxd4 {[%clk 00:42:22]} {[%emt 00:01:09]} 28. exd4
{[%clk 00:57:37]} {[%emt 00:00:11]} Kg6 {[%clk 00:41:57]} {[%emt 00:00:56]} 29.
f3 {[%clk 00:54:04]} {[%emt 00:04:03]} h5 {[%clk 00:41:18]} {[%emt 00:01:09]}
30. h3 {[%clk 00:53:03]} {[%emt 00:01:30]} Kf5 {[%clk 00:37:18]} {[%emt
00:04:31]} 31. hxg4+ {[%clk 00:51:47]} {[%emt 00:01:45]} hxg4 {[%clk 00:37:23]}
{[%emt 00:00:25]} 32. fxg4+ {[%clk 00:52:00]} {[%emt 00:00:18]} Kxg4 {[%clk
00:37:40]} {[%emt 00:00:13]} 33. Kf2 {[%clk 00:52:14]} {[%emt 00:00:15]} Bd7
{[%clk 00:37:14]} {[%emt 00:00:56]} 34. Ke3 {[%clk 00:52:05]} {[%emt 00:00:39]}
Be8 {[%clk 00:37:01]} {[%emt 00:00:43]} 35. Kd3 {[%clk 00:52:16]} {[%emt
00:00:19]} Kf3 {[%clk 00:32:52]} {[%emt 00:04:39]} 36. Kc3 {[%clk 00:52:03]}
{[%emt 00:00:43]} Bh5 {[%clk 00:32:40]} {[%emt 00:00:43]} 37. Kb3 {[%clk
00:49:41]} {[%emt 00:02:52]} Ke3 {[%clk 00:30:26]} {[%emt 00:02:43]} 38. Kc3
{[%clk 00:49:59]} {[%emt 00:00:12]} 1/2-1/2

[Event "NJSK 2021 Jeugd C"]
[Site "Almelo, Netherlands"]
[Date "2021.08.06"]
[Round "8.10"]
[White "Pancharajah, Abisan"]
[Black "Ekker, Joshua"]
[Result "1/2-1/2"]
[TimeControl "90min + 30sec/move"]
[WhiteElo "1650"]
[BlackElo "1695"]

1. e4 {[%clk 01:30:50]} {[%emt 00:00:10]} e5 {[%clk 01:30:55]} {[%emt
00:00:05]} 2. Nf3 {[%clk 01:31:10]} {[%emt 00:00:10]} Nc6 {[%clk 01:31:20]}
{[%emt 00:00:06]} 3. Bb5 {[%clk 01:31:27]} {[%emt 00:00:11]} a6 {[%clk
01:31:43]} {[%emt 00:00:09]} 4. Ba4 {[%clk 01:31:26]} {[%emt 00:00:31]} Nf6
{[%clk 01:31:47]} {[%emt 00:00:25]} 5. O-O {[%clk 01:31:27]} {[%emt 00:00:28]}
b5 {[%clk 01:32:09]} {[%emt 00:00:09]} 6. Bb3 {[%clk 01:31:50]} {[%emt
00:00:07]} Bc5 {[%clk 01:31:46]} {[%emt 00:00:54]} 7. c3 {[%clk 01:31:29]}
{[%emt 00:00:51]} d6 {[%clk 01:31:00]} {[%emt 00:01:16]} 8. a4 {[%clk
01:30:52]} {[%emt 00:01:07]} Bb7 {[%clk 01:27:08]} {[%emt 00:04:22]} 9. d3
{[%clk 01:25:59]} {[%emt 00:05:23]} h6 {[%clk 01:21:56]} {[%emt 00:05:41]} 10.
Nbd2 {[%clk 01:23:24]} {[%emt 00:03:00]} O-O {[%clk 01:21:26]} {[%emt
00:01:07]} 11. h3 {[%clk 01:20:30]} {[%emt 00:03:23]} Re8 {[%clk 01:14:50]}
{[%emt 00:07:05]} 12. Re1 {[%clk 01:17:42]} {[%emt 00:03:18]} Ne7 {[%clk
01:10:11]} {[%emt 00:05:10]} 13. Nf1 {[%clk 01:09:23]} {[%emt 00:08:48]} Ng6
{[%clk 01:08:04]} {[%emt 00:02:37]} 14. Ng3 {[%clk 01:07:47]} {[%emt 00:02:03]}
d5 {[%clk 00:57:17]} {[%emt 00:11:21]} 15. Bd2 {[%clk 00:58:48]} {[%emt
00:09:28]} dxe4 {[%clk 00:49:10]} {[%emt 00:08:37]} 16. dxe4 {[%clk 00:57:36]}
{[%emt 00:01:41]} Qd7 {[%clk 00:44:53]} {[%emt 00:04:48]} 17. Qc1 {[%clk
00:52:19]} {[%emt 00:05:47]} Kh7 {[%clk 00:35:47]} {[%emt 00:09:35]} 18. Bc2
{[%clk 00:44:08]} {[%emt 00:08:41]} Qe6 {[%clk 00:25:26]} {[%emt 00:10:51]} 19.
b4 {[%clk 00:38:15]} {[%emt 00:06:23]} Bf8 {[%clk 00:23:09]} {[%emt 00:02:47]}
20. Rb1 {[%clk 00:35:34]} {[%emt 00:03:12]} Bc6 {[%clk 00:18:55]} {[%emt
00:04:44]} 21. a5 {[%clk 00:34:22]} {[%emt 00:01:42]} Qd7 {[%clk 00:14:46]}
{[%emt 00:04:38]} 22. Be3 {[%clk 00:29:52]} {[%emt 00:04:59]} Red8 {[%clk
00:12:01]} {[%emt 00:03:16]} 23. Rb2 {[%clk 00:23:22]} {[%emt 00:07:02]} Qe8
{[%clk 00:10:35]} {[%emt 00:01:54]} 24. Bb1 {[%clk 00:22:03]} {[%emt 00:01:49]}
Rab8 {[%clk 00:09:06]} {[%emt 00:02:00]} 25. Rbe2 {[%clk 00:21:01]} {[%emt
00:01:31]} Rd7 {[%emt 00:03:00]} 26. c4 {[%emt 00:00:01]} bxc4 {[%emt
00:00:11]} 1/2-1/2

[Event "NJSK 2021 Jeugd C"]
[Site "Almelo, Netherlands"]
[Date "2021.08.06"]
[Round "8.11"]
[White "Kumar, Prayan Sai"]
[Black "Sazonov, Fedor"]
[Result "1/2-1/2"]
[TimeControl "90min + 30sec/move"]
[WhiteElo "1652"]
[BlackElo "1650"]

1. d4 {[%clk 01:30:57]} {[%emt 00:00:03]} d5 {[%clk 01:30:56]} {[%emt
00:00:05]} 2. c4 {[%clk 01:31:15]} {[%emt 00:00:11]} e6 {[%clk 01:31:18]}
{[%emt 00:00:09]} 3. cxd5 {[%clk 01:31:19]} {[%emt 00:00:26]} exd5 {[%clk
01:31:37]} {[%emt 00:00:10]} 4. Nc3 {[%clk 01:31:22]} {[%emt 00:00:27]} c6
{[%clk 01:31:30]} {[%emt 00:00:37]} 5. Nf3 {[%clk 01:30:05]} {[%emt 00:01:47]}
Be7 {[%clk 01:29:52]} {[%emt 00:02:08]} 6. Bf4 {[%clk 01:28:39]} {[%emt
00:01:56]} Nf6 {[%clk 01:29:15]} {[%emt 00:01:06]} 7. e3 {[%clk 01:27:57]}
{[%emt 00:01:13]} Bf5 {[%clk 01:28:32]} {[%emt 00:01:14]} 8. Be2 {[%clk
01:26:41]} {[%emt 00:01:45]} O-O {[%clk 01:28:02]} {[%emt 00:00:59]} 9. O-O
{[%clk 01:26:45]} {[%emt 00:00:26]} Nbd7 {[%clk 01:26:45]} {[%emt 00:01:48]} 10.
a3 {[%clk 01:25:54]} {[%emt 00:01:20]} a5 {[%clk 01:26:07]} {[%emt 00:01:08]}
11. Bd3 {[%clk 01:22:00]} {[%emt 00:04:24]} Bxd3 {[%clk 01:25:22]} {[%emt
00:01:16]} 12. Qxd3 {[%emt 00:01:54]} Re8 {[%clk 01:23:51]} {[%emt 00:00:19]}
13. Rab1 {[%clk 01:21:16]} {[%emt 00:01:31]} a4 {[%clk 01:22:49]} {[%emt
00:01:32]} 14. Ne2 {[%clk 01:10:52]} {[%emt 00:10:54]} Ne4 {[%clk 01:12:32]}
{[%emt 00:10:47]} 15. Nd2 {[%clk 01:06:01]} {[%emt 00:05:21]} Ndf6 {[%clk
01:08:17]} {[%emt 00:04:45]} 16. Nxe4 {[%clk 00:59:33]} {[%emt 00:06:58]} Nxe4
{[%clk 01:08:23]} {[%emt 00:00:24]} 17. Rbd1 {[%clk 00:57:06]} {[%emt
00:02:56]} Bd6 {[%clk 01:03:00]} {[%emt 00:05:53]} 18. Bxd6 {[%clk 00:55:32]}
{[%emt 00:02:05]} Nxd6 {[%clk 01:02:38]} {[%emt 00:00:52]} 19. Nc3 {[%clk
00:49:59]} {[%emt 00:06:04]} Nc4 {[%emt 00:07:45]} 20. Qc2 {[%emt 00:00:26]} b5
{[%clk 00:54:20]} {[%emt 00:00:36]} 21. Na2 {[%clk 00:45:03]} {[%emt 00:05:26]}
Qg5 {[%clk 00:49:04]} {[%emt 00:05:43]} 22. Nb4 {[%clk 00:34:46]} {[%emt
00:10:50]} Re6 {[%clk 00:46:24]} {[%emt 00:03:08]} 23. Nd3 {[%clk 00:26:09]}
{[%emt 00:09:09]} h5 {[%clk 00:39:43]} {[%emt 00:07:11]} 24. Nf4 {[%clk
00:22:05]} {[%emt 00:04:34]} Rf6 {[%clk 00:33:04]} {[%emt 00:07:08]} 25. Qe2
{[%clk 00:17:17]} {[%emt 00:05:19]} Qg4 {[%clk 00:28:51]} {[%emt 00:04:42]} 26.
Qxg4 {[%clk 00:12:18]} {[%emt 00:05:30]} hxg4 {[%clk 00:28:54]} {[%emt
00:00:27]} 27. Nd3 {[%clk 00:11:17]} {[%emt 00:01:31]} Re6 {[%clk 00:25:53]}
{[%emt 00:03:28]} 28. Rfe1 {[%clk 00:08:16]} {[%emt 00:03:33]} Kf8 {[%clk
00:25:14]} {[%emt 00:01:09]} 29. Re2 {[%clk 00:08:15]} {[%emt 00:00:32]} f5
{[%clk 00:24:58]} {[%emt 00:00:44]} 30. g3 {[%clk 00:08:32]} {[%emt 00:00:14]}
Ke7 {[%clk 00:24:19]} {[%emt 00:01:08]} 31. Kg2 {[%clk 00:08:11]} {[%emt
00:00:51]} Kd6 {[%clk 00:23:25]} {[%emt 00:01:26]} 32. Nf4 {[%clk 00:04:25]}
{[%emt 00:04:15]} Re4 {[%clk 00:22:57]} {[%emt 00:00:57]} 33. Rc2 {[%emt
00:03:00]} Rae8 {[%clk 00:18:44]} {[%emt 00:03:28]} 34. Rdc1 {[%clk 00:02:34]}
{[%emt 00:01:07]} g5 {[%clk 00:17:22]} {[%emt 00:01:52]} 35. Nd3 {[%clk
00:02:22]} {[%emt 00:00:43]} Rc8 {[%clk 00:16:52]} {[%emt 00:01:00]} 36. Nc5
{[%clk 00:02:14]} {[%emt 00:00:38]} Re7 {[%clk 00:16:30]} {[%emt 00:00:50]} 37.
Kf1 {[%clk 00:01:15]} {[%emt 00:01:30]} Rcc7 {[%clk 00:12:49]} {[%emt
00:04:11]} 38. Kg2 {[%clk 00:01:08]} {[%emt 00:00:37]} Rc8 {[%clk 00:12:57]}
{[%emt 00:00:22]} 39. Kf1 {[%clk 00:01:20]} {[%emt 00:00:18]} Rh7 {[%clk
00:11:59]} {[%emt 00:01:27]} 40. Kg2 {[%clk 00:01:42]} {[%emt 00:00:09]} Rch8
{[%clk 00:12:10]} {[%emt 00:00:19]} 41. Rh1 {[%clk 00:01:58]} {[%emt 00:00:14]}
Ra7 {[%clk 00:11:18]} {[%emt 00:01:23]} 42. Rhc1 {[%clk 00:01:45]} {[%emt
00:00:42]} Rb8 {[%clk 00:11:17]} {[%emt 00:00:30]} 43. Nd3 {[%clk 00:01:44]}
{[%emt 00:00:32]} Rab7 {[%clk 00:08:41]} {[%emt 00:03:06]} 44. Kg1 {[%clk
00:01:23]} {[%emt 00:00:51]} Rb6 {[%clk 00:07:50]} {[%emt 00:01:22]} 45. Kg2
{[%clk 00:01:35]} {[%emt 00:00:17]} Kc7 {[%clk 00:03:53]} {[%emt 00:04:26]} 46.
Kg1 {[%clk 00:01:38]} {[%emt 00:00:29]} Kb7 {[%clk 00:04:10]} {[%emt 00:00:13]}
47. Nc5+ {[%clk 00:01:54]} {[%emt 00:00:14]} Kc7 {[%clk 00:04:08]} {[%emt
00:00:31]} 48. Nd3 {[%clk 00:02:11]} {[%emt 00:00:13]} Kd6 {[%clk 00:03:39]}
{[%emt 00:01:00]} 49. Kg2 {[%clk 00:02:32]} {[%emt 00:00:09]} Na5 {[%clk
00:02:46]} {[%emt 00:01:23]} 50. Nb4 {[%clk 00:02:01]} {[%emt 00:01:00]} Rc8
{[%clk 00:02:33]} {[%emt 00:00:43]} 51. Nd3 {[%clk 00:01:40]} {[%emt 00:00:51]}
Nb3 {[%clk 00:02:34]} {[%emt 00:00:29]} 52. Rh1 {[%clk 00:01:48]} {[%emt
00:00:21]} Rbb8 {[%clk 00:02:13]} {[%emt 00:00:52]} 53. Re1 {[%clk 00:01:38]}
{[%emt 00:00:40]} Rc7 {[%clk 00:01:59]} {[%emt 00:00:44]} 54. Rd1 {[%clk
00:01:46]} {[%emt 00:00:22]} Rbb7 {[%clk 00:02:21]} {[%emt 00:00:09]} 55. Re1
{[%clk 00:01:54]} {[%emt 00:00:22]} c5 {[%clk 00:02:38]} {[%emt 00:00:13]} 56.
dxc5+ {[%clk 00:01:59]} {[%emt 00:00:24]} Nxc5 {[%clk 00:02:55]} {[%emt
00:00:13]} 57. Nxc5 {[%clk 00:02:23]} {[%emt 00:00:05]} Rxc5 {[%clk 00:03:19]}
{[%emt 00:00:07]} 58. Rxc5 {[%clk 00:02:50]} {[%emt 00:00:04]} Kxc5 {[%clk
00:03:42]} {[%emt 00:00:06]} 59. Rc1+ {[%clk 00:03:14]} {[%emt 00:00:05]} Kd6
{[%clk 00:04:05]} {[%emt 00:00:08]} 60. Kf1 {[%clk 00:02:51]} {[%emt 00:00:53]}
Rc7 {[%clk 00:03:40]} {[%emt 00:00:55]} 61. Rxc7 {[%clk 00:03:15]} {[%emt
00:00:06]} Kxc7 {[%emt 00:00:04]} 62. Ke2 {[%clk 00:03:36]} {[%emt 00:00:09]}
Kd6 {[%clk 00:03:47]} {[%emt 00:00:49]} 63. Kd2 {[%clk 00:03:31]} {[%emt
00:00:35]} Ke5 {[%clk 00:02:51]} {[%emt 00:01:26]} 64. Kd3 {[%clk 00:03:54]}
{[%emt 00:00:08]} Ke6 {[%clk 00:00:58]} {[%emt 00:02:23]} 65. Kc3 {[%clk
00:03:22]} {[%emt 00:01:01]} Ke5 {[%clk 00:01:23]} {[%emt 00:00:05]} 66. Kb4
{[%clk 00:03:03]} {[%emt 00:00:50]} Ke4 {[%clk 00:01:41]} {[%emt 00:00:12]} 67.
Kxb5 {[%clk 00:03:30]} {[%emt 00:00:03]} Kf3 {[%clk 00:01:51]} {[%emt
00:00:19]} 68. Kxa4 {[%clk 00:03:56]} {[%emt 00:00:04]} Kxf2 {[%clk 00:02:11]}
{[%emt 00:00:10]} 69. b4 {[%clk 00:04:23]} {[%emt 00:00:03]} Kxe3 {[%clk
00:02:09]} {[%emt 00:00:33]} 70. b5 {[%clk 00:04:43]} {[%emt 00:00:10]} d4
{[%clk 00:02:25]} {[%emt 00:00:13]} 71. b6 {[%clk 00:04:31]} {[%emt 00:01:38]}
d3 {[%clk 00:02:54]} {[%emt 00:00:01]} 72. b7 {[%clk 00:04:36]} {[%emt
00:00:25]} d2 {[%clk 00:03:23]} {[%emt 00:00:01]} 73. b8=Q {[%emt 00:00:09]}
d1=Q+ {[%clk 00:03:50]} {[%emt 00:00:03]} 74. Ka5 {[%clk 00:05:15]} {[%emt
00:00:11]} Qd2+ {[%clk 00:03:07]} {[%emt 00:01:12]} 75. Ka4 {[%clk 00:05:19]}
{[%emt 00:00:27]} Qc2+ {[%clk 00:03:07]} {[%emt 00:00:31]} 76. Ka5 {[%clk
00:05:26]} {[%emt 00:00:23]} Qc5+ {[%clk 00:02:38]} {[%emt 00:00:59]} 77. Ka4
{[%clk 00:05:39]} {[%emt 00:00:17]} Qc4+ {[%clk 00:02:44]} {[%emt 00:00:24]} 78.
Ka5 {[%clk 00:05:58]} {[%emt 00:00:11]} Qc5+ {[%clk 00:01:41]} {[%emt
00:01:32]} 79. Ka4 {[%clk 00:06:16]} {[%emt 00:00:13]} Qc6+ {[%clk 00:01:37]}
{[%emt 00:00:34]} 80. Ka5 {[%clk 00:05:02]} {[%emt 00:01:44]} Kd4 {[%clk
00:01:42]} {[%emt 00:00:25]} 81. Qb4+ {[%clk 00:04:55]} {[%emt 00:00:36]} Qc4
{[%clk 00:01:48]} {[%emt 00:00:24]} 82. Qd2+ {[%clk 00:05:06]} {[%emt
00:00:19]} Kc5 {[%emt 00:00:30]} 83. Qb4 {[%emt 00:00:16]} Kd5 {[%clk
00:01:09]} {[%emt 00:00:23]} 84. Qb7 {[%clk 00:05:03]} {[%emt 00:00:33]} Kd4
{[%clk 00:00:45]} {[%emt 00:00:54]} 85. Qg7+ {[%clk 00:04:59]} {[%emt
00:00:34]} Ke4 {[%clk 00:00:35]} {[%emt 00:00:39]} 86. Qxg5 {[%clk 00:04:39]}
{[%emt 00:00:50]} Qc5+ {[%clk 00:00:45]} {[%emt 00:00:20]} 87. Ka4 {[%clk
00:04:53]} {[%emt 00:00:17]} Qc2+ {[%clk 00:00:53]} {[%emt 00:00:17]} 88. Ka5
{[%clk 00:05:16]} {[%emt 00:00:11]} Qc5+ {[%clk 00:01:04]} {[%emt 00:00:19]} 89.
Ka4 {[%clk 00:05:32]} {[%emt 00:00:14]} Qa7+ {[%clk 00:01:31]} {[%emt
00:00:03]} 90. Kb3 {[%clk 00:05:46]} {[%emt 00:00:17]} 1/2-1/2

[Event "NJSK 2021 Jeugd C"]
[Site "Almelo, Netherlands"]
[Date "2021.08.06"]
[Round "8.12"]
[White "Lankheet, Hidde"]
[Black "Lopes, Samuel"]
[Result "1-0"]
[TimeControl "90min + 30sec/move"]
[WhiteElo "1000"]
[BlackElo "1124"]

1. e4 {[%clk 01:30:59]} c5 {[%clk 01:30:54]} {[%emt 00:00:07]} 2. Nf3 {[%clk
01:31:26]} {[%emt 00:00:03]} e6 {[%clk 01:31:17]} {[%emt 00:00:07]} 3. d4
{[%clk 01:31:52]} {[%emt 00:00:04]} cxd4 {[%clk 01:31:39]} {[%emt 00:00:07]} 4.
Nxd4 {[%clk 01:32:16]} {[%emt 00:00:06]} Nf6 {[%clk 01:32:00]} {[%emt
00:00:09]} 5. Nc3 {[%clk 01:32:41]} {[%emt 00:00:06]} Nc6 {[%clk 01:32:23]}
{[%emt 00:00:06]} 6. Bf4 {[%clk 01:32:48]} {[%emt 00:00:23]} Bb4 {[%clk
01:32:34]} {[%emt 00:00:18]} 7. Ndb5 {[%clk 01:31:58]} {[%emt 00:01:20]} Nxe4
{[%clk 01:32:46]} {[%emt 00:00:18]} 8. Qf3 {[%clk 01:32:11]} {[%emt 00:00:17]}
d5 {[%clk 01:33:00]} {[%emt 00:00:17]} 9. Nc7+ {[%clk 01:32:20]} {[%emt
00:00:20]} Kf8 {[%clk 01:33:13]} {[%emt 00:00:17]} 10. a3 {[%clk 01:27:56]}
{[%emt 00:04:55]} Nd4 {[%clk 01:29:25]} {[%emt 00:04:18]} 11. Qd3 {[%clk
01:26:26]} {[%emt 00:01:59]} Qf6 {[%clk 01:28:36]} {[%emt 00:01:19]} 12. Be3
{[%clk 01:24:41]} {[%emt 00:02:15]} Nxc3 {[%clk 01:27:44]} {[%emt 00:01:22]} 13.
Bxd4 {[%clk 01:20:42]} {[%emt 00:04:29]} Nb5+ {[%clk 01:25:53]} {[%emt
00:02:21]} 14. axb4 {[%clk 01:19:43]} {[%emt 00:01:30]} Nxd4 {[%clk 01:25:29]}
{[%emt 00:00:53]} 15. Nxa8 {[%clk 01:17:32]} {[%emt 00:02:42]} Qe5+ {[%clk
01:24:49]} {[%emt 00:01:09]} 16. Be2 {[%clk 01:17:01]} {[%emt 00:01:01]} Bd7
{[%clk 01:23:49]} {[%emt 00:01:30]} 17. Rd1 {[%clk 01:11:38]} {[%emt 00:05:53]}
Bb5 {[%clk 01:23:57]} {[%emt 00:00:22]} 18. f4 {[%clk 01:05:21]} {[%emt
00:06:47]} Qxe2+ {[%clk 01:18:10]} {[%emt 00:06:17]} 19. Qxe2 {[%clk 01:05:40]}
{[%emt 00:00:11]} Nxe2 {[%clk 01:18:25]} {[%emt 00:00:15]} 20. Nc7 {[%clk
01:04:52]} {[%emt 00:01:18]} Bc4 {[%clk 01:16:38]} {[%emt 00:02:17]} 21. b3
{[%clk 01:04:38]} {[%emt 00:00:45]} Nc3 {[%clk 01:16:42]} {[%emt 00:00:25]} 22.
bxc4 {[%clk 01:04:57]} {[%emt 00:00:12]} Nxd1 {[%clk 01:16:55]} {[%emt
00:00:16]} 23. Kxd1 {[%clk 01:05:20]} {[%emt 00:00:06]} dxc4 {[%clk 01:16:49]}
{[%emt 00:00:36]} 24. Nb5 {[%clk 01:04:43]} {[%emt 00:01:08]} a6 {[%clk
01:17:01]} {[%emt 00:00:19]} 25. Nc3 {[%clk 01:04:32]} {[%emt 00:00:40]} b5
{[%clk 01:17:20]} {[%emt 00:00:11]} 26. Ke2 {[%clk 01:04:47]} {[%emt 00:00:15]}
Ke7 {[%clk 01:17:25]} {[%emt 00:00:25]} 27. Rd1 {[%clk 01:05:05]} {[%emt
00:00:11]} f5 {[%clk 01:16:58]} {[%emt 00:00:57]} 28. Ke3 {[%clk 01:05:14]}
{[%emt 00:00:22]} h6 {[%clk 01:15:31]} {[%emt 00:01:57]} 29. h4 {[%clk
01:05:12]} {[%emt 00:00:32]} Rg8 {[%clk 01:13:44]} {[%emt 00:02:17]} 30. h5
{[%clk 01:03:36]} {[%emt 00:02:07]} g6 {[%clk 01:13:15]} {[%emt 00:00:59]} 31.
Kf3 {[%clk 01:03:03]} {[%emt 00:01:02]} g5 {[%clk 01:12:44]} {[%emt 00:01:01]}
32. g3 {[%clk 01:02:18]} {[%emt 00:01:15]} g4+ {[%clk 01:12:09]} {[%emt
00:01:06]} 33. Ke3 {[%clk 01:02:29]} {[%emt 00:00:18]} Ra8 {[%clk 01:11:37]}
{[%emt 00:01:02]} 34. Ra1 {[%clk 01:01:20]} {[%emt 00:01:39]} Kf6 {[%clk
01:06:35]} {[%emt 00:05:32]} 35. Ne2 {[%clk 01:00:52]} {[%emt 00:00:58]} e5
{[%clk 01:05:54]} {[%emt 00:01:11]} 36. fxe5+ {[%clk 01:00:11]} {[%emt
00:01:12]} Kxe5 {[%emt 00:00:15]} 37. Nf4 {[%clk 00:59:34]} {[%emt 00:01:00]}
Kd6 {[%clk 01:04:30]} {[%emt 00:02:14]} 38. Kd4 {[%clk 00:59:32]} {[%emt
00:00:33]} Ra7 {[%clk 01:03:51]} {[%emt 00:01:09]} 39. c3 {[%clk 00:59:45]}
{[%emt 00:00:17]} Ra8 {[%clk 01:01:55]} {[%emt 00:02:26]} 40. Re1 {[%clk
00:59:45]} {[%emt 00:00:30]} a5 {[%clk 00:58:39]} {[%emt 00:03:47]} 41. bxa5
{[%clk 00:59:31]} {[%emt 00:00:44]} Rxa5 {[%clk 00:58:58]} {[%emt 00:00:10]} 42.
Re6+ {[%clk 00:59:36]} {[%emt 00:00:25]} Kc7 {[%clk 00:58:56]} {[%emt
00:00:32]} 43. Rxh6 {[%clk 00:59:51]} {[%emt 00:00:15]} Ra1 {[%clk 00:59:04]}
{[%emt 00:00:21]} 44. Kc5 {[%clk 00:59:28]} {[%emt 00:00:55]} b4 {[%clk
00:58:27]} {[%emt 00:01:06]} 45. Kxb4 {[%clk 00:58:52]} {[%emt 00:01:06]} Rg1
{[%clk 00:58:21]} {[%emt 00:00:35]} 46. Ne2 {[%clk 00:58:42]} {[%emt 00:00:41]}
Rg2 {[%clk 00:58:32]} {[%emt 00:00:19]} 47. Re6 {[%clk 00:58:59]} {[%emt
00:00:13]} Kd7 {[%clk 00:58:45]} {[%emt 00:00:16]} 48. Re3 {[%clk 00:58:41]}
{[%emt 00:00:49]} Rh2 {[%clk 00:58:57]} {[%emt 00:00:18]} 49. Nf4 {[%clk
00:58:57]} {[%emt 00:00:14]} Rf2 {[%clk 00:58:57]} {[%emt 00:00:30]} 50. Kxc4
{[%clk 00:59:03]} {[%emt 00:00:24]} Kc7 {[%clk 00:58:06]} {[%emt 00:01:20]} 51.
Re5 {[%clk 00:59:06]} {[%emt 00:00:28]} Rf3 {[%clk 00:58:18]} {[%emt 00:00:17]}
52. Rxf5 {[%clk 00:59:00]} {[%emt 00:00:37]} Rxg3 {[%clk 00:58:34]} {[%emt
00:00:13]} 53. h6 {[%clk 00:59:15]} {[%emt 00:00:16]} Rf3 {[%clk 00:58:30]}
{[%emt 00:00:33]} 54. h7 {[%clk 00:59:24]} {[%emt 00:00:21]} g3 {[%clk
00:58:50]} {[%emt 00:00:10]} 55. Nd5+ {[%clk 00:59:41]} {[%emt 00:00:13]} Kd7
{[%emt 00:00:22]} 56. Rxf3 {[%clk 00:59:59]} {[%emt 00:00:10]} g2 {[%clk
00:59:22]} {[%emt 00:00:07]} 57. Rg3 {[%clk 01:00:26]} {[%emt 00:00:04]} Ke6
{[%emt 00:00:14]} 58. Rxg2 {[%clk 01:00:53]} {[%emt 00:00:01]} Kf7 {[%emt
00:00:27]} 59. h8=Q {[%emt 00:00:25]} Ke6 {[%clk 01:00:09]} {[%emt 00:00:05]}
60. Qf6+ {[%clk 01:01:05]} {[%emt 00:00:22]} Kd7 {[%clk 01:00:29]} {[%emt
00:00:10]} 61. Rg7+ {[%clk 01:01:27]} {[%emt 00:00:08]} Kc8 {[%clk 01:00:39]}
{[%emt 00:00:20]} 62. Qf8# {[%clk 01:01:47]} {[%emt 00:00:10]} 1-0